bitfinex/quotes_SOLUSD_20250922
["timestamp","ask_amount","ask_price","bid_price","bid_amount"]
[1758542539913,31.19202454,221.63,221.62,0.2]
[1758542541338,26.0,221.59,221.52,0.71]
[1758542541636,26.0,221.58,221.52,0.71]
[1758542542006,26.0,221.6,221.52,0.71]
[1758542542226,4.51283902,221.59,221.52,0.71]
[1758542542635,15.79493658,221.59,221.52,0.71]
[1758542543012,0.68,221.58,221.52,0.71]
[1758542544119,26.0,221.56,221.49,0.71]
[1758542544318,26.0,221.52,221.49,0.71]
[1758542544832,26.0,221.52,221.5,0.71]
[1758542545036,26.0,221.52,221.47,0.1]
[1758542545238,26.0,221.52,221.48,0.71]
[1758542545438,26.0,221.52,221.49,0.71]
[1758542545736,26.0,221.52,221.47,34.92]
[1758542546038,26.0,221.52,221.48,0.71]
[1758542546342,15.80064105,221.51,221.48,0.71]
[1758542546937,15.80064105,221.51,221.47,34.92]
[1758542547245,26.0,221.48,221.47,0.1]
[1758542548241,30.51508036,221.48,221.47,0.1]
[1758542548924,4.51508036,221.48,221.47,0.1]
[1758542549125,11.28617218,221.51,221.47,0.79]
[1758542549325,0.72,221.5,221.47,0.1]
[1758542550548,4.51487651,221.49,221.47,0.1]
[1758542550719,0.72,221.48,221.47,0.1]
[1758542550919,26.72,221.48,221.47,1e-08]
[1758542551137,0.72,221.48,221.47,1e-08]
[1758542551348,26.72,221.48,221.47,1e-08]
[1758542551849,0.72,221.48,221.47,1e-08]
[1758542552938,31.23508036,221.48,221.47,1e-08]
[1758542553843,26.0,221.44,221.42,0.1]
[1758542554442,26.0,221.45,221.42,0.1]
[1758542554635,26.0,221.45,221.43,0.69]
[1758542554839,15.80278128,221.48,221.44,0.69]
[1758542555048,26.0,221.5,221.45,0.69]
[1758542555239,0.72,221.49,221.44,0.69]
[1758542555744,15.80064105,221.51,221.45,0.69]
[1758542556043,41.80064105,221.51,221.45,0.69]
[1758542556447,26.0,221.48,221.43,0.69]
[1758542556640,26.0,221.48,221.42,0.79]
[1758542557230,26.0,221.46,221.42,0.79]
[1758542557865,4.51528423,221.47,221.42,0.79]
[1758542558963,34.92,221.53,221.42,0.79]
[1758542558964,11.28531706,221.53,221.42,0.79]
[1758542559128,4.51385754,221.54,221.42,0.79]
[1758542559129,4.51385754,221.54,221.43,13.59559401]
[1758542559447,4.5136538,221.55,221.44,5.20589595]
[1758542559638,4.5136538,221.55,221.45,0.69]
[1758542559835,4.5136538,221.55,221.46,34.94]
[1758542560025,4.5136538,221.55,221.47,0.69]
[1758542560228,4.5136538,221.55,221.47,35.63]
[1758542560443,4.5136538,221.55,221.48,0.69]
[1758542561040,15.7977883,221.55,221.48,0.69]
[1758542561231,26.0,221.52,221.48,0.69]
[1758542561737,4.5138269,221.55,221.48,5.20505358]
[1758542561938,0.72,221.54,221.46,0.69]
[1758542562139,26.0,221.52,221.44,0.69]
[1758542562328,26.72,221.51,221.44,0.69]
[1758542562653,26.72,221.51,221.42,0.79]
[1758542563435,26.0,221.47,221.42,0.1]
[1758542563840,26.0,221.47,221.43,0.69]
[1758542564432,26.0,221.47,221.42,0.1]
[1758542564636,0.72,221.46,221.42,0.1]
[1758542565552,26.0,221.43,221.42,0.1]
[1758542567753,30.51609989,221.43,221.42,0.1]
[1758542569937,42.52634963,221.43,221.35,0.69]
[1758542570159,26.0,221.39,221.31,0.69]
[1758542570364,26.0,221.39,221.32,2.92130013]
[1758542570544,26.72,221.39,221.31,0.69]
[1758542570864,4.51711988,221.38,221.31,0.69]
[1758542571161,26.0,221.35,221.31,0.69]
[1758542571542,26.0,221.42,221.32,13.59559401]
[1758542571743,4.51589595,221.44,221.33,0.69]
[1758542571943,4.51589595,221.44,221.33,38.97]
[1758542572245,26.0,221.42,221.34,0.69]
[1758542572553,26.0,221.42,221.35,13.59559401]
[1758542572740,4.51589595,221.44,221.36,0.69]
[1758542573645,16.52563583,221.44,221.36,0.69]
[1758542574337,4.51589595,221.44,221.36,0.69]
[1758542574959,4.51589595,221.44,221.36,43.40751751]
[1758542575260,26.0,221.45,221.37,0.69]
[1758542575644,13.58480314,221.46,221.37,0.69]
[1758542575844,0.72,221.51,221.38,13.59559401]
[1758542576053,26.0,221.47,221.39,0.69]
[1758542576361,26.0,221.46,221.39,0.69]
[1758542576567,26.0,221.46,221.4,13.59559401]
[1758542576767,13.58295792,221.49,221.41,0.69]
[1758542577061,0.7,221.51,221.42,38.16]
[1758542577255,0.7,221.51,221.42,38.84]
[1758542577571,4.5140613,221.53,221.43,0.68]
[1758542577743,13.58172804,221.51,221.44,13.59559401]
[1758542578060,26.0,221.53,221.45,0.68]
[1758542578238,26.0,221.51,221.45,0.68]
[1758542578436,13.57926899,221.54,221.46,13.59559401]
[1758542578655,0.7,221.53,221.45,0.68]
[1758542578972,4.51426507,221.52,221.45,0.68]
[1758542579167,0.7,221.51,221.42,38.84]
[1758542579372,26.0,221.49,221.42,38.84]
[1758542579561,26.7,221.49,221.43,38.12]
[1758542579864,0.7,221.49,221.43,38.12]
[1758542580754,26.0,221.5,221.44,0.68]
[1758542581063,4.51487651,221.49,221.44,0.68]
[1758542581243,4.23562418,221.49,221.44,38.76]
[1758542581444,4.23562418,221.49,221.45,0.68]
[1758542581659,4.23562418,221.49,221.46,0.68]
[1758542582855,4.23562418,221.49,221.44,38.76]
[1758542583066,4.23562418,221.49,221.45,0.68]
[1758542584162,15.52281547,221.49,221.45,0.68]
[1758542584346,0.7,221.48,221.42,0.68]
[1758542584564,0.7,221.48,221.42,37.96]
[1758542584762,26.0,221.45,221.38,0.68]
[1758542585065,15.80563583,221.44,221.38,0.68]
[1758542585246,13.58357293,221.48,221.39,37.96]
[1758542585447,13.58357293,221.48,221.4,14.27559401]
[1758542585669,0.7,221.52,221.42,13.59559401]
[1758542585872,18.79541022,221.52,221.43,0.68]
[1758542586167,26.0,221.49,221.43,0.68]
[1758542586883,26.0,221.51,221.43,0.68]
[1758542587190,4.51467268,221.5,221.44,37.9]
[1758542587685,4.51467268,221.5,221.45,37.9]
[1758542587883,4.51467268,221.5,221.45,38.58]
[1758542588169,0.7,221.49,221.46,37.9]
[1758542588467,0.7,221.51,221.46,37.9]
[1758542588665,26.0,221.5,221.46,37.86]
[1758542588853,26.0,221.5,221.46,38.54]
[1758542589046,26.0,221.5,221.43,0.68]
[1758542589252,26.0,221.49,221.43,0.68]
[1758542589766,26.0,221.48,221.43,37.84]
[1758542590068,26.0,221.48,221.43,38.52]
[1758542590263,26.0,221.5,221.44,0.68]
[1758542590454,26.0,221.49,221.44,0.68]
[1758542590862,41.79992776,221.52,221.43,37.84]
[1758542591064,4.51467268,221.5,221.44,38.48]
[1758542591567,4.51467268,221.5,221.44,0.68]
[1758542591775,4.51467268,221.5,221.45,37.78]
[1758542591969,4.51467268,221.5,221.45,38.46]
[1758542592474,15.80135439,221.5,221.46,37.78]
[1758542592682,16.50135439,221.5,221.43,0.68]
[1758542592876,4.51467268,221.5,221.47,37.74]
[1758542593061,26.0,221.49,221.47,37.74]
[1758542593369,30.51487767,221.49,221.47,37.74]
[1758542593959,4.51487767,221.49,221.44,0.68]
[1758542594280,26.0,221.48,221.45,37.72]
[1758542595358,30.5151843,221.48,221.46,37.7]
[1758542595553,15.80288522,221.48,221.42,0.71]
[1758542595760,16.47288522,221.48,221.43,37.66]
[1758542596162,0.67,221.47,221.43,37.66]
[1758542596853,26.0,221.45,221.39,0.71]
[1758542597052,26.0,221.45,221.34,85.11790764]
[1758542597267,26.0,221.45,221.37,0.71]
[1758542597268,15.80563583,221.44,221.37,0.71]
[1758542597474,26.0,221.43,221.38,37.62]
[1758542597678,26.67,221.43,221.38,37.62]
[1758542597874,26.67,221.43,221.36,0.71]
[1758542598179,26.0,221.41,221.36,37.58]
[1758542598376,26.0,221.41,221.31,37.33]
[1758542598377,0.67,221.4,221.31,37.33]
[1758542598590,0.67,221.4,221.32,37.58]
[1758542598764,0.67,221.4,221.32,38.29]
[1758542599086,0.67,221.39,221.31,36.62]
[1758542599465,15.80991959,221.38,221.32,37.56]
[1758542599971,0.67,221.37,221.31,36.62]
[1758542600183,0.67,221.37,221.33,37.56]
[1758542600880,0.67,221.37,221.34,37.52]
[1758542601074,15.80991959,221.38,221.33,37.52]
[1758542601380,11.29279971,221.38,221.34,0.71]
[1758542602670,11.29279971,221.38,221.33,37.52]
[1758542602858,11.29279971,221.38,221.34,0.71]
[1758542603060,26.0,221.36,221.35,0.71]
[1758542603588,4.51773209,221.35,221.33,0.71]
[1758542603882,4.51773209,221.35,221.34,37.46]
[1758542604374,26.0,221.36,221.34,38.17]
[1758542604578,30.5175955,221.36,221.34,38.17]
[1758542604882,26.0,221.37,221.34,38.17]
[1758542605568,4.517528,221.36,221.34,38.17]
[1758542605769,4.517528,221.36,221.34,37.46]
[1758542606172,4.517528,221.36,221.32,0.71]
[1758542606381,4.517528,221.36,221.33,37.42]
[1758542606774,4.517528,221.36,221.33,38.13]
[1758542607073,4.517528,221.36,221.33,0.71]
[1758542607288,4.517528,221.36,221.34,37.4]
[1758542607973,15.81134802,221.36,221.34,37.38]
[1758542608383,4.517528,221.36,221.34,37.38]
[1758542608690,26.0,221.35,221.34,37.38]
[1758542608865,26.0,221.35,221.34,37.34]
[1758542609867,30.51773209,221.35,221.34,37.34]
[1758542610385,30.51773209,221.35,221.34,37.3]
[1758542611167,30.51773209,221.35,221.34,37.95]
[1758542611376,30.51753561,221.36,221.34,37.95]
[1758542611573,30.51693245,221.39,221.35,0.65]
[1758542611776,26.0,221.37,221.36,0.65]
[1758542611967,26.0,221.38,221.37,0.65]
[1758542612168,26.0,221.38,221.37,37.91]
[1758542612369,26.0,221.38,221.37,37.26]
[1758542612587,26.0,221.38,221.35,0.65]
[1758542612773,26.0,221.38,221.36,37.26]
[1758542612965,26.0,221.38,221.36,37.91]
[1758542613172,30.51714213,221.38,221.36,37.91]
[1758542613699,26.0,221.38,221.36,37.91]
[1758542615192,30.51717172,221.38,221.36,37.91]
[1758542615581,13.58849507,221.42,221.37,0.65]
[1758542615872,15.80563583,221.44,221.38,0.65]
[1758542616088,26.0,221.41,221.38,0.65]
[1758542616678,4.51571056,221.45,221.38,0.65]
[1758542616988,26.0,221.44,221.39,4.51691584]
[1758542617206,26.0,221.44,221.4,37.81]
[1758542617376,26.0,221.44,221.41,0.65]
[1758542617578,26.0,221.44,221.42,0.65]
[1758542617776,4.51551356,221.46,221.43,37.14]
[1758542618101,26.0,221.47,221.44,0.65]
[1758542618393,18.09766394,221.5,221.45,0.65]
[1758542618597,4.51470603,221.5,221.46,0.65]
[1758542618777,26.0,221.49,221.47,37.12]
[1758542618980,26.0,221.49,221.48,37.1]
[1758542619397,4.51487651,221.49,221.48,37.1]
[1758542619796,16.4720678,221.49,221.42,0.65]
[1758542620002,42.4720678,221.49,221.43,37.1]
[1758542620297,26.0,221.46,221.43,37.08]
[1758542620500,26.67,221.46,221.43,37.08]
[1758542620692,0.67,221.45,221.43,37.08]
[1758542621287,4.51589595,221.44,221.43,37.08]
[1758542622494,26.0,221.41,221.33,4.51811606]
[1758542622686,26.0,221.41,221.38,0.65]
[1758542622888,26.0,221.41,221.39,37.67]
[1758542623085,26.67,221.41,221.39,37.02]
[1758542623400,4.51671183,221.4,221.39,37.02]
[1758542623910,4.51650698,221.42,221.39,37.67]
[1758542624082,4.51650698,221.42,221.39,0.65]
[1758542624283,26.0,221.4,221.39,37.0]
[1758542624877,30.51650698,221.42,221.39,37.0]
[1758542625285,41.80726662,221.42,221.39,36.96]
[1758542625681,26.0,221.4,221.39,36.96]
[1758542626011,26.0,221.42,221.39,37.61]
[1758542626188,26.0,221.42,221.4,0.65]
[1758542626706,41.80578205,221.44,221.39,36.96]
[1758542626895,26.0,221.41,221.39,36.96]
[1758542627101,15.80578205,221.44,221.39,37.61]
[1758542627481,13.58541832,221.48,221.4,0.65]
[1758542627680,26.0,221.46,221.4,0.65]
[1758542629608,4.51569202,221.45,221.4,0.65]
[1758542629787,4.51569202,221.45,221.41,0.65]
[1758542629983,3.01041387,221.48,221.42,37.51]
[1758542630193,26.0,221.48,221.43,37.51]
[1758542630394,26.0,221.48,221.44,0.65]
[1758542630600,26.0,221.48,221.45,0.65]
[1758542631399,26.0,221.48,221.46,0.65]
[1758542631705,30.51516575,221.48,221.46,0.65]
[1758542631909,30.51516575,221.48,221.47,36.82]
[1758542632292,30.51516575,221.48,221.46,36.82]
[1758542632494,0.67,221.47,221.45,36.82]
[1758542632697,0.67,221.47,221.45,36.8]
[1758542632897,4.51516575,221.48,221.45,36.8]
[1758542633096,5.18516575,221.48,221.45,36.8]
[1758542633719,16.47286667,221.48,221.41,0.65]
[1758542633897,16.47286667,221.48,221.44,36.8]
[1758542634297,15.80286667,221.48,221.44,36.8]
[1758542634498,15.80286667,221.48,221.44,37.45]
[1758542634723,15.80286667,221.48,221.44,36.8]
[1758542635507,15.80286667,221.48,221.41,0.65]
[1758542635711,11.28770092,221.48,221.43,36.78]
[1758542636018,11.28770092,221.48,221.43,37.43]
[1758542636215,11.28770092,221.48,221.43,36.74]
[1758542636518,11.28770092,221.48,221.43,37.39]
[1758542636714,11.95770092,221.48,221.43,37.39]
[1758542637016,11.28770092,221.48,221.43,0.65]
[1758542637322,11.96770092,221.48,221.43,36.72]
[1758542637912,16.48278128,221.48,221.43,36.72]
[1758542638099,3.69194909,221.47,221.42,36.7]
[1758542638294,3.69194909,221.47,221.42,0.71]
[1758542638500,3.01194909,221.47,221.43,0.71]
[1758542638708,15.80278128,221.48,221.37,4.51732393]
[1758542638924,26.0,221.44,221.41,0.71]
[1758542639126,15.80101692,221.51,221.41,0.71]
[1758542639427,2.13852771,221.47,221.41,0.71]
[1758542639998,2.13852771,221.47,221.41,7.36497889]
[1758542640199,2.13852771,221.47,221.42,0.71]
[1758542641017,6.65401583,221.46,221.42,0.71]
[1758542641217,4.51548812,221.46,221.43,0.71]
[1758542641431,28.13852771,221.44,221.43,0.71]
[1758542641726,2.13852771,221.44,221.42,36.62]
[1758542642243,2.13852771,221.44,221.42,37.33]
[1758542642433,41.80420843,221.46,221.39,80.6]
[1758542642732,26.0,221.44,221.43,36.6]
[1758542643549,4.51609989,221.43,221.42,36.58]
[1758542643727,32.6546276,221.43,221.42,36.58]
[1758542643930,32.6546276,221.43,221.42,37.29]
[1758542644824,32.6546276,221.43,221.42,36.58]
[1758542645339,32.6546276,221.43,221.42,36.56]
[1758542645943,32.6546276,221.43,221.4,0.71]
[1758542646130,32.6546276,221.43,221.41,36.54]
[1758542646447,32.6546276,221.43,221.41,37.25]
[1758542646831,2.13852771,221.42,221.37,0.71]
[1758542647039,2.13852771,221.4,221.38,37.23]
[1758542647272,2.13852771,221.39,221.38,0.71]
[1758542647431,2.13852771,221.39,221.38,36.52]
[1758542647632,2.13852771,221.39,221.38,37.23]
[1758542647840,2.13852771,221.4,221.38,37.23]
[1758542648038,2.13852771,221.4,221.39,0.71]
[1758542648241,2.13852771,221.4,221.39,36.52]
[1758542648749,41.80634963,221.43,221.39,36.52]
[1758542649050,6.65523954,221.4,221.39,36.52]
[1758542649347,6.65523954,221.4,221.39,36.48]
[1758542650223,17.94701912,221.4,221.39,36.48]
[1758542650849,26.0,221.4,221.39,36.48]
[1758542651057,6.65463445,221.43,221.39,37.19]
[1758542651237,2.13852771,221.45,221.4,0.71]
[1758542651433,2.13852771,221.43,221.41,0.71]
[1758542651636,2.13852771,221.43,221.42,37.15]
[1758542652129,26.0,221.45,221.42,37.15]
[1758542652330,6.6546276,221.43,221.42,37.15]
[1758542652528,6.6546276,221.43,221.37,2.13852771]
[1758542652728,6.6546276,221.43,221.38,37.13]
[1758542652942,6.6546276,221.43,221.39,0.71]
[1758542653136,2.13852771,221.42,221.38,36.42]
[1758542653342,2.13852771,221.42,221.4,0.71]
[1758542653544,2.13852771,221.42,221.41,0.71]
[1758542653747,2.13852771,221.43,221.41,0.71]
[1758542654055,2.13852771,221.43,221.42,36.4]
[1758542654833,3.01632387,221.44,221.42,37.09]
[1758542655159,6.65238525,221.54,221.43,19.80351805]
[1758542655348,6.65238525,221.54,221.47,2.13852771]
[1758542655544,4.51385754,221.54,221.48,39.20852771]
[1758542655861,3.01791772,221.55,221.49,39.20852771]
[1758542656040,2.13852771,221.55,221.5,36.36]
[1758542656376,4.5134594,221.56,221.51,36.36]
[1758542656662,4.51385754,221.54,221.51,36.36]
[1758542656959,30.51385754,221.54,221.51,36.36]
[1758542657136,3.01791772,221.53,221.51,36.36]
[1758542657342,4.51385754,221.54,221.52,0.69]
[1758542657558,30.51385754,221.54,221.53,0.69]
[1758542657766,33.53177526,221.54,221.53,0.69]
[1758542658145,3.01791772,221.54,221.53,0.69]
[1758542658461,4.51366947,221.55,221.53,0.69]
[1758542658867,7.53158719,221.55,221.53,0.69]
[1758542659164,4.51366947,221.55,221.54,0.69]
[1758542659345,7.53158719,221.55,221.54,0.69]
[1758542660756,7.53158719,221.55,221.52,0.69]
[1758542661062,7.53158719,221.55,221.53,0.69]
[1758542661855,7.53158719,221.55,221.54,36.26]
[1758542665263,4.51366947,221.55,221.54,36.26]
[1758542665472,4.51366947,221.55,221.54,36.24]
[1758542665847,4.51366947,221.55,221.54,36.2]
[1758542667167,4.51366947,221.55,221.54,36.89]
[1758542667341,4.51366947,221.55,221.54,36.2]
[1758542669241,15.79780397,221.55,221.51,0.72]
[1758542669446,15.79780397,221.55,221.52,36.14]
[1758542669447,1.36756988,221.53,221.52,36.14]
[1758542670655,5.88163118,221.53,221.52,36.14]
[1758542671055,4.5140613,221.53,221.52,36.86]
[1758542671657,4.5140613,221.53,221.52,36.84]
[1758542671849,4.5140613,221.53,221.52,36.82]
[1758542672179,4.51384193,221.55,221.52,36.82]
[1758542672480,1.36756988,221.56,221.53,0.72]
[1758542672667,4.51324637,221.57,221.54,0.72]
[1758542672982,4.51250883,221.61,221.56,1.36756988]
[1758542673148,4.51250883,221.61,221.57,36.8]
[1758542673343,4.51250883,221.61,221.58,0.72]
[1758542673772,4.51250883,221.61,221.57,36.08]
[1758542673958,1.36756988,221.59,221.54,0.72]
[1758542674265,1.36756988,221.55,221.54,36.08]
[1758542676077,1.36756988,221.55,221.54,36.06]
[1758542676676,5.88122368,221.55,221.54,36.06]
[1758542676845,5.88122368,221.55,221.52,0.72]
[1758542677050,4.5136538,221.55,221.53,36.76]
[1758542677289,1.36756988,221.54,221.53,36.76]
[1758542679071,1.36756988,221.54,221.53,0.72]
[1758542679256,1.36756988,221.54,221.53,36.7]
[1758542679257,5.88142742,221.54,221.53,36.7]
[1758542680781,5.88142742,221.54,221.5,0.72]
[1758542681089,4.51385754,221.54,221.53,35.96]
[1758542681280,16.49850139,221.54,221.52,35.96]
[1758542681584,16.49850139,221.54,221.48,0.72]
[1758542681968,16.49850139,221.54,221.49,35.96]
[1758542682170,1.36756988,221.5,221.49,35.96]
[1758542682573,1.36756988,221.5,221.48,35.94]
[1758542682775,5.88244639,221.49,221.48,35.94]
[1758542683791,5.88244639,221.49,221.46,0.72]
[1758542683977,1.36756988,221.48,221.47,36.66]
[1758542684285,5.88244639,221.49,221.47,36.66]
[1758542684484,5.88244639,221.49,221.48,0.72]
[1758542684991,5.88244639,221.49,221.47,35.94]
[1758542685376,5.88244639,221.49,221.47,36.66]
[1758542685584,5.88244639,221.49,221.47,0.72]
[1758542685781,5.88244639,221.49,221.48,35.9]
[1758542687175,5.88244639,221.49,221.48,35.88]
[1758542689790,4.51487651,221.49,221.48,35.88]
[1758542689976,5.88244639,221.49,221.48,35.88]
[1758542690384,5.88244639,221.49,221.48,36.6]
[1758542692372,5.88244639,221.49,221.48,35.88]
[1758542694610,5.88244639,221.49,221.46,0.72]
[1758542694781,1.36756988,221.47,221.44,0.72]
[1758542695104,1.36756988,221.46,221.45,35.78]
[1758542695600,1.36756988,221.46,221.45,36.5]
[1758542697583,1.36756988,221.47,221.45,36.5]
[1758542697812,4.51467268,221.5,221.46,0.7]
[1758542697991,1.36756988,221.49,221.46,0.7]
[1758542698196,1.36756988,221.5,221.46,0.7]
[1758542698394,1.36756988,221.5,221.47,0.7]
[1758542698694,1.36756988,221.49,221.48,0.7]
[1758542698996,1.36756988,221.54,221.48,0.7]
[1758542699177,8.90364445,221.54,221.48,6.58263562]
[1758542699383,5.88142742,221.54,221.49,0.7]
[1758542699597,5.88142742,221.54,221.5,35.74]
[1758542699779,5.88142742,221.54,221.51,0.7]
[1758542699984,5.88142742,221.54,221.52,0.7]
[1758542700709,1.36756988,221.53,221.5,35.74]
[1758542700903,1.36756988,221.52,221.5,36.44]
[1758542701101,1.36756988,221.51,221.5,35.72]
[1758542701396,1.36756988,221.51,221.44,80.6]
[1758542701612,1.36756988,221.46,221.44,80.6]
[1758542701905,26.0,221.5,221.45,35.72]
[1758542702114,26.72,221.5,221.46,35.7]
[1758542702282,16.5220678,221.49,221.46,35.7]
[1758542702691,3.02221247,221.53,221.47,0.7]
[1758542702902,1.36756988,221.52,221.47,0.7]
[1758542703986,3.02233216,221.54,221.49,1.36756988]
[1758542704214,5.88123781,221.55,221.5,36.38]
[1758542704412,5.88123781,221.55,221.51,0.7]
[1758542704704,5.88123781,221.55,221.5,35.68]
[1758542704881,5.88123781,221.55,221.52,0.7]
[1758542705082,4.51366793,221.55,221.53,0.7]
[1758542705293,4.51366793,221.55,221.54,35.68]
[1758542705702,1.36756988,221.55,221.54,35.68]
[1758542705912,1.36756988,221.56,221.54,36.38]
[1758542706089,4.51304495,221.58,221.55,0.7]
[1758542706286,4.51304495,221.58,221.56,0.7]
[1758542706492,5.88061483,221.58,221.54,35.68]
[1758542707106,5.88061483,221.58,221.55,0.7]
[1758542707283,5.88061483,221.58,221.54,35.68]
[1758542707487,1.36756988,221.59,221.55,0.7]
[1758542707690,4.39026329,221.6,221.56,0.7]
[1758542707885,8.90289739,221.61,221.56,0.7]
[1758542708205,1.36756988,221.59,221.57,0.7]
[1758542708515,1.36756988,221.59,221.58,35.64]
[1758542708803,8.90289739,221.61,221.58,0.7]
[1758542709017,26.0,221.57,221.46,0.7]
[1758542709206,1.36756988,221.49,221.47,35.62]
[1758542709518,1.36756988,221.49,221.47,0.7]
[1758542709689,1.36756988,221.5,221.47,0.7]
[1758542710209,1.36756988,221.49,221.48,35.62]
[1758542710705,1.36756988,221.49,221.45,0.7]
[1758542711005,1.36756988,221.47,221.45,0.7]
[1758542711207,1.36756988,221.47,221.46,35.6]
[1758542711913,5.88285411,221.47,221.46,35.6]
[1758542712212,4.51528423,221.47,221.46,35.6]
[1758542712398,4.51528423,221.47,221.45,0.7]
[1758542712797,1.36756988,221.46,221.45,0.7]
[1758542712989,1.36756988,221.46,221.43,0.7]
[1758542713306,1.36756988,221.45,221.44,35.58]
[1758542713508,1.36756988,221.45,221.4,0.7]
[1758542713718,1.36756988,221.43,221.41,36.28]
[1758542713898,5.88378962,221.43,221.41,0.7]
[1758542714494,5.88378962,221.43,221.42,35.56]
[1758542714694,4.51621974,221.43,221.42,36.25]
[1758542714921,1.36756988,221.45,221.42,36.25]
[1758542715090,1.36756988,221.45,221.4,0.69]
[1758542715411,1.36756988,221.44,221.41,36.25]
[1758542715611,1.36756988,221.42,221.36,0.69]
[1758542715808,0.72,221.43,221.36,0.69]
[1758542715809,1.36756988,221.4,221.36,0.69]
[1758542716025,4.51711988,221.38,221.37,35.54]
[1758542716220,5.88468976,221.38,221.35,71.28463293]
[1758542716598,1.36756988,221.37,221.35,71.28463293]
[1758542716809,1.36756988,221.37,221.36,35.54]
[1758542716996,1.36756988,221.37,221.34,0.69]
[1758542717325,1.36756988,221.37,221.35,35.54]
[1758542717889,1.36756988,221.36,221.34,0.69]
[1758542718098,1.36756988,221.36,221.35,35.54]
[1758542718512,1.36756988,221.36,221.31,0.69]
[1758542718715,1.36756988,221.33,221.29,36.6]
[1758542719021,1.36756988,221.32,221.29,37.29]
[1758542719209,1.36756988,221.3,221.25,0.1]
[1758542719512,1.36756988,221.3,221.29,35.52]
[1758542720192,5.8863871,221.3,221.29,35.52]
[1758542720392,1.81220977,221.36,221.29,36.21]
[1758542720603,1.36756988,221.31,221.29,36.21]
[1758542721125,1.36756988,221.3,221.25,0.79]
[1758542721426,1.36756988,221.29,221.28,35.6]
[1758542721624,1.36756988,221.29,221.28,0.1]
[1758542721924,1.36756988,221.29,221.28,35.6]
[1758542722343,5.8865269,221.29,221.28,35.6]
[1758542723117,4.51895702,221.29,221.28,35.6]
[1758542723416,5.8865269,221.29,221.28,35.6]
[1758542723815,5.8865269,221.29,221.28,0.1]
[1758542725831,6.6065269,221.29,221.28,0.1]
[1758542726927,26.0,221.26,221.25,0.1]
[1758542727108,27.36756988,221.26,221.25,0.1]
[1758542727311,28.04756988,221.26,221.25,0.1]
[1758542728107,32.56713961,221.26,221.25,0.1]
[1758542728509,43.86606395,221.26,221.2,0.1]
[1758542728707,1.36756988,221.21,221.2,0.1]
[1758542729806,27.36756988,221.21,221.2,0.1]
[1758542730214,31.88816117,221.21,221.2,0.1]
[1758542730634,30.52059129,221.21,221.2,0.1]
[1758542730807,26.0,221.21,221.2,0.78]
[1758542731019,16.4194129,221.21,221.2,1e-08]
[1758542731229,56.42000419,221.21,221.05,15.74278537]
[1758542731412,2.14381889,221.13,221.12,0.68]
[1758542732122,13.59835007,221.21,221.14,4.52202224]
[1758542732335,13.59835007,221.21,221.13,13.59559401]
[1758542732336,2.14381889,221.17,221.15,0.68]